Cogmind - Beta 14 @@@ ROGUE MODE // 2024.09.28 @ 14:50:27 Player: star Result: Destroyed self with Rocket Launcher Performance ------------- Evolutions (1) 500 Regions Visited (4) 800 Robots Destroyed (41) 205 Value Destroyed (996) 996 Prototype IDs (4) 80 Alien Tech Used (0) 0 Bonus (0) 0 TOTAL SCORE: 2581 Bonus ------- None Cogmind --------- Core Integrity 0/400 Matter 218/300 Energy 280/280 System Corruption 0% Temperature Cool (0) Movement Core (550) Ox10 Location -9/Mines Parts ------- > --- POWER (1) -------- Heavy Ion Engine > --- PROPULSION (2) --- (None) > --- UTILITY (4) ------ Improved Heat Sink Large Storage Unit Targeting Computer > --- WEAPON (2) ------- Rocket Launcher > --- INVENTORY (15) --- Heavy Ion Engine Small Storage Unit Compact Battery (200) Signal Interpreter Targeting Computer Targeting Computer Field Laser Field Laser Field Laser Light EM Pulse Cannon Heavy Assault Rifle Shock Bomb Launcher Plasma Cutter Flail Peak State ------------ > --- POWER ------------ Light Nuclear Core > --- PROPULSION ------- Aluminum Leg Aluminum Leg > --- UTILITY ---------- Heat Sink Improved Heat Sink Large Storage Unit Targeting Computer > --- WEAPON ----------- Field Laser Improved Assault Rifle > --- INVENTORY -------- Small Storage Unit Compact Battery Signal Interpreter Signal Interpreter Targeting Computer Targeting Computer Field Laser Field Laser Field Laser Light EM Pulse Cannon Heavy Assault Rifle Shock Bomb Launcher Rocket Launcher Plasma Cutter Flail [Rating: 20] Favorites ----------- Power Ion Engine Engine Ion Engine Power Core Light Nuclear Core Propulsion Aluminum Leg Treads Light Treads Leg Aluminum Leg Utility Large Storage Unit Device Heat Sink Storage Large Storage Unit Processor Targeting Computer Protection Light Armor Plating Weapon Assault Rifle Energy Gun Small Laser Energy Cannon Light EM Pulse Cannon Ballistic Gun Assault Rifle Launcher Rocket Launcher Build | -11 -10 -10 -9 -9 ------- Run | Yrd Mat Min Mat Min Slots Evolved 2 | . . . 2 . Power . | . . . . . Propulsion . | . . . . . Utility 2 | . . . 2 . Weapon . | . . . . . Parts Attached 40 | 8 . 2 24 6 Power 5 | 1 . . 4 . Engine 4 | 1 . . 3 . Core 1 | . . . 1 . Reactor . | . . . . . Propulsion 10 | 4 . 1 1 4 Treads 2 | 2 . . . . Leg 8 | 2 . 1 1 4 Wheel . | . . . . . Hover . | . . . . . Flight . | . . . . . Utility 10 | 1 . 1 7 1 Device 5 | . . . 4 1 Storage 3 | 1 . 1 1 . Processor 1 | . . . 1 . Hackware . | . . . . . Protection 1 | . . . 1 . Artifact . | . . . . . Weapon 15 | 2 . . 12 1 Energy Gun 7 | 1 . . 6 . Energy Cannon 1 | . . . 1 . Ballistic Gun 4 | 1 . . 3 . Ballistic Cannon . | . . . . . Launcher 3 | . . . 2 1 Special Weapon . | . . . . . Impact Weapon . | . . . . . Slashing Weapon . | . . . . . Piercing Weapon . | . . . . . Special Melee Weapon . | . . . . . Unidentified Prototypes 2 | . . . 2 . Parts Lost 13 | . . . 6 7 Power 2 | . . . 2 . Propulsion 4 | . . . 1 3 Utility 4 | . . . 2 2 Weapon 3 | . . . 1 2 Highest Loss Streak 4 | . . . 3 4 To Critical Strikes . | . . . . . Average Slot Usage (%) 89 | . 85 85 90 91 Engine 10 | . 14 14 9 11 Leg 22 | . 28 28 21 18 Device 11 | . . . 14 18 Storage 14 | . 14 14 15 11 Processor 3 | . . . 3 11 Protection 1 | . . . 2 . Energy Gun 12 | . 14 14 12 9 Ballistic Gun 9 | . 14 14 7 9 Peak Build Rating 20 | 6 6 6 20 20 Average Rating 11 | 4 6 5 12 18 On Entrance 7 | . 6 6 6 20 Naked Turns . | . . . . . Heaviest Build 39 | 13 13 13 39 36 Greatest Support 40 | 40 20 20 20 20 Greatest Overweight (x) 3 | 1 . . 3 3 Average Overweight (x) . | . . . . 1 Largest Inventory Capacity 15 | 8 8 8 15 15 Average Capacity 13 | 7 8 7 14 15 Most Carried 15 | 1 1 5 15 15 Average Carried 8 | . 1 2 9 14 Final Capacity 15 | 8 8 8 15 15 Final Carried 15 | 1 1 5 15 14 Class Distribution -------------------- 61% | Mutant 38% | Scavenger-Mutant Dominant Class ---------------- Mutant | -10/Materials Mutant | -10/Mines Mutant | -9/Materials Scavenger-Mutant | -9/Mines Resources | -11 -10 -10 -9 -9 ----------- Run | Yrd Mat Min Mat Min Matter Collected 846 | 126 . 164 482 74 Remotely . | . . . . . Salvage Created 1449 | . . 87 1146 216 Parts 88 | . . 2 72 14 Haulers Intercepted 4 | . . . 4 . Recyclers Shooed 3 | . . . 3 . Parts Field Recycled . | . . . . . Retrieved Matter . | . . . . . Parts Self-Destructed . | . . . . . Prevented . | . . . . . Kills | -11 -10 -10 -9 -9 ------- Run | Yrd Mat Min Mat Min Combat Hostiles Destroyed 30 | . . 2 20 8 Guns 16 | . . 2 10 4 Cannons 1 | . . . 1 . AOE 12 | . . . 8 4 Classes Destroyed 11 | . . 1 8 2 Worker 4 | . . . 3 1 Builder 1 | . . . 1 . Tunneler 2 | . . . 2 . Hauler 4 | . . . 4 . Recycler 3 | . . . 2 1 Watcher 1 | . . . 1 . Swarmer 5 | . . . 5 . Grunt 14 | . . 2 9 3 Sentry 6 | . . . 6 . Demolisher 1 | . . . . 1 Assembled 4 | . . . . 4 Best Kill Streak 11 | . . 1 11 5 Combat Bots Only 5 | . . 1 4 5 Max Kills in Single Turn 4 | . . 1 4 3 Gunslinging 1 | . . . . 1 Exploded 3 | . . . 3 3 Melee . | . . . . . Uniques/NPCs Destroyed . | . . . . . Combat | -11 -10 -10 -9 -9 -------- Run | Yrd Mat Min Mat Min Hostile Shots Fired 149 | . 3 11 92 43 Missed 48 | . 1 6 31 10 Damage Taken 1824 | . 20 67 880 857 Core 441 | . 10 26 148 257 Absorbed by Shields . | . . . . . Core Remaining (%) 92 | 100 . 85 . . Volleys Fired 104 | . . 10 79 15 Largest 2 | . . 2 2 2 Hottest 121 | . . 60 121 86 Shots Fired 184 | . . 18 143 23 Gun 160 | . . 18 126 16 Cannon 7 | . . . 7 . Launcher 17 | . . . 10 7 Special . | . . . . . Kinetic 66 | . . 10 48 8 Thermal 94 | . . 8 78 8 Explosive 17 | . . . 10 7 Electromagnetic 7 | . . . 7 . Robot Hit Streak 11 | . . 8 11 8 Robot Miss Streak 3 | . . 2 3 2 Penetration Max . | . . . . . Secondary Targets 4 | . . . 2 2 Max Gunslinging Chain 1 | . . . 1 1 Shots Hit Robots 125 | . . 12 98 15 Core Hits 71 | . . 6 50 15 Critical Kills . | . . . . . Critical Parts Destroyed . | . . . . . Critical Strikes 2 | . . . 2 . Burn 2 | . . . 2 . Melee Attacks . | . . . . . Impact . | . . . . . Slashing . | . . . . . Piercing . | . . . . . Sneak Attacks . | . . . . . Combat Hostiles . | . . . . . Follow-up Attacks . | . . . . . Damage Inflicted 2999 | . . 162 2271 566 Guns 1570 | . . 153 1223 194 Cannons 124 | . . . 124 . Explosions 1296 | . . . 924 372 Melee . | . . . . . Ramming 9 | . . 9 . . Kinetic 711 | . . 97 488 126 Thermal 859 | . . 56 735 68 Explosive 1296 | . . . 924 372 Electromagnetic 124 | . . . 124 . Impact . | . . . . . Slashing . | . . . . . Piercing . | . . . . . Highest Corruption . | . . . . . Average Corruption . | . . . . . Corruption Purged . | . . . . . Corruption Blocked . | . . . . . Overload Shots . | . . . . . Overflow Damage 83 | . . . 33 50 Projectiles 4 | . . . 4 . Explosions 79 | . . . 29 50 Melee . | . . . . . Knockbacks 1 | . . 1 . . Impact 1 | . . 1 . . Kinetic . | . . . . . Secondary . | . . . . . Self-Inflicted Damage 46 | . . . . 46 Shots 1 | . . . . 1 Rammed . | . . . . . Targets Rammed 1 | . . 1 . . Kicked 1 | . . 1 . . Crushed . | . . . . . Highest Temperature 63 | . . 36 63 12 Average Temperature 16 | . . 22 16 6 Received Heat Transfer 486 | . 12 57 291 126 Siege Activations . | . . . . . Robots Corrupted . | . . . . . Combat Hostiles . | . . . . . Parts Fried . | . . . . . Impact Corruptions . | . . . . . Robots Melted 1 | . . . 1 . Combat Hostiles 1 | . . . 1 . Parts Melted 5 | . . . 5 . Heat Transferred 2149 | . . 125 1876 148 Parts Sabotaged . | . . . . . Parts Stolen . | . . . . . Parts Stripped . | . . . . . Power Chain Reactions . | . . . . . Alert | -11 -10 -10 -9 -9 ------- Run | Yrd Mat Min Mat Min Peak Influence 327 | . 50 64 327 245 Initial 118 | . . 19 7 118 Average 122 | . 10 36 143 216 Maximum Alert Level 1 | . . . 1 1 Low Security (%) 66 | 100 100 100 62 9 Level 1 33 | . . . 37 90 Level 2 . | . . . . . Level 3 . | . . . . . Level 4 . | . . . . . Level 5 . | . . . . . High Security . | . . . . . Max Security . | . . . . . Squads Dispatched 1 | . . . 1 . Investigation . | . . . . . Extermination . | . . . . . Reinforcement 1 | . . . 1 . Assault . | . . . . . Garrison . | . . . . . Intercept . | . . . . . Searches Triggered . | . . . . . Construction Impeded . | . . . . . Haulers Reinforced . | . . . . . Active Scanning Responses . | . . . . . Cargo Convoy Interrupts . | . . . . . Stealth | -11 -10 -10 -9 -9 --------- Run | Yrd Mat Min Mat Min Distress Signals 1 | . . . 1 . Communications Jammed . | . . . . . Distress Signals . | . . . . . Times Spotted 52 | . 5 3 32 12 Peak Tracking Total 8 | . 4 2 8 4 Tactical Retreats 3 | . 1 1 1 . Traps | -11 -10 -10 -9 -9 ------- Run | Yrd Mat Min Mat Min Traps Triggered 1 | . . . 1 . Indirectly . | . . . . . Trap Hack Attempts . | . . . . . Triggered . | . . . . . Disarmed . | . . . . . Reprogrammed . | . . . . . Reused . | . . . . . Traps Extracted . | . . . . . Installed . | . . . . . Triggered . | . . . . . Machines | -11 -10 -10 -9 -9 ---------- Run | Yrd Mat Min Mat Min Machines Disabled 3 | . . . . 3 Max in Single Turn 1 | . . . . 1 Machines Repaired . | . . . . . Machines Dismantled . | . . . . . Machines Sabotaged . | . . . . . Overloaded Fab Kills . | . . . . . Hacking | -11 -10 -10 -9 -9 --------- Run | Yrd Mat Min Mat Min Machines Accessed 3 | . 2 . 1 . Terminals 3 | . 2 . 1 . Fabricators . | . . . . . Repair Stations . | . . . . . Recycling Units . | . . . . . Scanalyzers . | . . . . . Garrison Access . | . . . . . Total Hacks 7 | . 3 . 4 . Successful 5 | . 3 . 2 . Failed 2 | . . . 2 . Catastrophic . | . . . . . Database Lockouts . | . . . . . Manual 5 | . 1 . 4 . Terminals 7 | . 3 . 4 . Fabricators . | . . . . . Repair Stations . | . . . . . Recycling Units . | . . . . . Scanalyzers . | . . . . . Garrison Access . | . . . . . Terminal Hacks 4 | . 3 . 1 . Prototype ID Bank 1 | . 1 . . . Alert Level 1 | . 1 . . . Hauler Manifests 2 | . 1 . 1 . Fabricator Hacks . | . . . . . Repair Station Hacks . | . . . . . Recycling Unit Hacks . | . . . . . Scanalyzer . | . . . . . Garrison Access Hacks . | . . . . . Unauthorized Hacks 1 | . . . 1 . Terminals 1 | . . . 1 . Assimilate 1 | . . . 1 . Fabricators . | . . . . . Repair Stations . | . . . . . Recycling Units . | . . . . . Scanalyzers . | . . . . . Garrison Access . | . . . . . Data Cores Recovered . | . . . . . Used . | . . . . . Hacking Detections 2 | . 1 . 1 . Full Trace Events . | . . . . . Feedback Events . | . . . . . Feedback Blocked . | . . . . . Robot Schematics Acquired . | . . . . . Robots Built . | . . . . . Authchips . | . . . . . Time . | . . . . . Total Robot Build Rating . | . . . . . Part Schematics Acquired . | . . . . . Parts Built . | . . . . . Authchips . | . . . . . Time . | . . . . . Total Part Build Rating . | . . . . . Parts Repaired . | . . . . . Time . | . . . . . Parts Recycled . | . . . . . Recycled Matter . | . . . . . Retrieved Matter . | . . . . . Retrieved Components . | . . . . . Parts Scanalyzed . | . . . . . Part Schematics Acquired . | . . . . . Parts Damaged . | . . . . . Bothacking | -11 -10 -10 -9 -9 ------------ Run | Yrd Mat Min Mat Min Used RIF Installer . | . . . . . Robots Hacked . | . . . . . Non-combat . | . . . . . Combat . | . . . . . Robot Hacks Applied . | . . . . . Relay Couplers Released . | . . . . . Fabnet Peak Effective % . | . . . . . Robots Rewired . | . . . . . Allies Hacked . | . . . . . Hacks Repelled . | . . . . . Allies | -11 -10 -10 -9 -9 -------- Run | Yrd Mat Min Mat Min Total Allies . | . . . . . Largest Group . | . . . . . Highest-Rated Group . | . . . . . Highest-Rated Ally . | . . . . . Total Orders . | . . . . . Ally Attacks . | . . . . . Total Damage . | . . . . . Kills . | . . . . . Allies Corrupted . | . . . . . Allies Melted . | . . . . . Intel | -11 -10 -10 -9 -9 ------- Run | Yrd Mat Min Mat Min Robot Analysis Total . | . . . . . Derelict Logs Recovered . | . . . . . Drone Launches . | . . . . . Drone Recoveries . | . . . . . Exploration | -11 -10 -10 -9 -9 ------------- Run | Yrd Mat Min Mat Min Turns Passed 2599 | 85 75 470 1719 250 Spaces Moved 1304 | 57 62 337 748 100 Core 10 | 10 . . . . Treads 25 | 25 . . . . Legs 1269 | 22 62 337 748 100 Wheels . | . . . . . Hover . | . . . . . Flight . | . . . . . Fastest Speed 50 | 50 120 120 120 190 Average Speed 166 | 127 120 120 188 201 Slowest Speed 330 | 190 120 120 330 330 Overloaded Moves . | . . . . . Propulsion Burnouts . | . . . . . Robots Hopped . | . . . . . Cave-ins Triggered . | . . . . . Exploration Rate (%) 39 | 4 24 77 50 41 Regions Visited 4 Branch Regions 2 Pre-discovered Areas 1 | . . 1 . . Known Exits Taken . | . . . . . Unknown Exits Taken 4 | 1 1 1 1 . Scrap Searched 1 | . . 1 . . Spaces Dug . | . . . . . Terrain Destroyed 107 | . . . 69 38 Melee . | . . . . . Projectile . | . . . . . AOE 107 | . . . 69 38 Terrain Rammed . | . . . . . Walls Destroyed . | . . . . . Machines Disabled . | . . . . . Actions | -11 -10 -10 -9 -9 --------- Run | Yrd Mat Min Mat Min Total 1551 | 65 62 384 912 128 Wait 69 | . 1 31 33 4 Move 1300 | 56 61 336 747 100 Hop . | . . . . . Pick Up 22 | 1 . 3 18 . Fast Attach 15 | 6 . . 7 2 Attach 4 | . . 1 2 1 Detach 1 | . . 1 . . Swap 21 | 2 . 1 15 3 Drop 14 | . . . 11 3 Fire 104 | . . 10 79 15 Melee . | . . . . . Ram . | . . . . . Kick 1 | . . 1 . . Crush . | . . . . . Escape Stasis . | . . . . . Rewire . | . . . . . Trap . | . . . . . Miscellaneous . | . . . . . Route ------- -11/Scrapyard -10/Materials -10/Mines -9/Materials (discovered 3 exits: [*Mat] / [*Min] / [*Sto]) -9/Mines (discovered 1 exit: [*Mat]) History --------- Turn | Location | Event 27 | -11/Scrapyard | Discovered new exit (range 16) 86 | -11/Scrapyard | Entered Materials 155 | -10/Materials | Discovered new exit (range 6) 161 | -10/Materials | Entered Mines 215 | -10/Mines | Learned location of Storage (-9) 315 | -10/Mines | Build established: Mutant 456 | -10/Mines | Received a Rocket Launcher from a helpful Derelict 612 | -10/Mines | Discovered new exit (range 15) 631 | -10/Mines | Entered Materials 631 | -9/Materials | Evolved 2 slots: Utility x2 703 | -9/Materials | Discovered new exit (range 5) 1343 | -9/Materials | Build established: Scavenger-Mutant 1448 | -9/Materials | Discovered new exit (range 7) 1516 | -9/Materials | Lost 3 parts (1n2u) 2013 | -9/Materials | Discovered new exit (range 13) 2350 | -9/Materials | Entered Mines 2367 | -9/Mines | Core integrity fell below 50% 2432 | -9/Mines | Discovered new exit (range 10) 2520 | -9/Mines | Assembled infested the area 2563 | -9/Mines | Core integrity fell below 20% 2595 | -9/Mines | Lost 4 parts (1n1u2w) 2600 | -9/Mines | Destroyed self with Rocket Launcher Last Messages --------------- 02565_ The unstable cave ceiling collapses. 02565_ as-90274 destroyed. 02565_ as-84454 destroyed. 02565_ Pressure Siphon disabled. 02565_ as-25930 destroyed. 02568_ The unstable cave ceiling collapses. 02571_ as-19354 destroyed. 02574_ U-05 Engineer builds a Wall. 02576_ The unstable cave ceiling collapses. 02585_ U-05 Engineer builds a Wall. 02588_ The unstable cave ceiling collapses. 02589_ U-05 Engineer builds a Wall. 02593_ U-05 Engineer lays Concrete. 02594_ The unstable cave ceiling collapses. 02594_ U-05 Engineer lays Concrete. 02597_ U-05 Engineer builds a Wall. 02599_ The unstable cave ceiling collapses. 02600_ Destroyed Asb. Hover Unit. 02600_ Aluminum Leg destroyed. 02600_ Destroyed Aluminum Leg. Map ----- +----------------------------------------------------+ | | | | | | | | | | | | | | | ?????????????????????????????????????????????????? | | ?????????????????????????????????????????????????? | | ?????????????????????????????????????????????????? | | ?????????????????????????????????????????????????? | | ?????????????????????????????????????????????????? | | ?????????????????????????????????????????????????? | | ?????????????????????????????????????????????????? | | ?????????????????????????????????????????????????? | | ?????????????????????????????????????????????????? | | ?????????????????????????????##??????????????????? | | ???????????????????????????? ####???????????????? | | ???????????????????????????? #???????????????? | | ??????????????????????????## ###?????????????? | | ?????????????????????????# ####??????????? | | ??????????????????????#### a ???????????? | | ?????????????????????## ###???????????? | | ????????????????????## #???????????? | | ???????????????????## #???????????? | | ###???????????????## @a "" #???????????? | | # ##??????????????# # #???????????? | | #??????????????# # #???????????? | | #???????????????# # # ##???????????? | | ##????????####???# # #????????????? | | ##????????## #???# #????????????? | | ##????????# #???## ## % % ### #??????????? | | ##??????## ##??# # #u ##???? ??????????? | | ##????## ##?## #####????????????????? | | ##??## ##?## % #????????????????????? | | ##?# ### ##????????????????????? | | ## ### #####?????????????????????? | | ### ##?????????????????????????? | | ??# ### ##??????????????????????????? | | ??# ##?## #???????????????????????????? | | ??## ##???# #??????????????????????????? | | ???### ####???? #??????????????????????????? | | ?????####?????? ##??????????????????????????? | | ?????????????? ##???????????????????????????? | | ????????????? #????????????????????????????? | | ????????????# #????????????????????????????? | | ############## #????????????????????????????? | | ### ##????????????????????????????? | | """ #?######?????????????????????????????? | | =""" [* #????????????????????????????????????? | +----------------------------------------------------+ Best States ------------- Heat Dissipation 52 Energy Generation 14 Energy Capacity 280 Matter Stores 300 Matter Capacity 300 Sight Range 16 Terrain Scan Density 10 Armor Coverage 150 Evasion (%) 55 Targeting Accuracy 5 Recoil Reduction 2 Item Schematics ----------------- None Robot Schematics ------------------ None Fabricated ------------ Nothing Alien Tech Used ----------------- None Achievements -------------- None Challenges ------------ None Game ------ Seed CoordinationMasterShield Manual? 0 Play Time 00:21:48 Cumulative 104.1 hours Start 2024.09.28 @ 12:49:35 End 2024.09.28 @ 14:50:27 Sessions 1 Manual Loads 0 Difficulty Rogue Special Mode None Game No. 180 Rogue 180 Adventurer 0 Explorer 0 Win Type - Total 1 Types 1/0/0/0/0/0/0/0/0 Lore% 49 Gallery% 53 Achievement% 43 Wizard Run 0 Options --------- Layout 0 ASCII 0 Keyboard 1 Movement Numpad Keybinds 0 Fullscreen 2 Font 18/SmallcapsGlow Map View 76x50 Zoom Use 0% Tactical HUD 1 Map Filters NONE Filters NONE Steam 1 RUN: 4e3c7e2b-1078-4c86-b798-860ee45bd154